Cogmind - Beta 13 @@@ ROGUE MODE // 2024.04.05 @ 22:27:37 Player: CatPlusPlus Result: Destroyed by D-53 Grenadier with Mini Grenade Launcher Performance ------------- Evolutions (0) 0 Regions Visited (2) 400 Robots Destroyed (40) 200 Value Destroyed (841) 841 Prototype IDs (0) 0 Alien Tech Used (0) 0 Bonus (0) 0 TOTAL SCORE: 1441 Bonus ------- None Cogmind --------- Core Integrity 0/250 Matter 288/300 Energy 100/100 System Corruption 0% Temperature Cool (0) Movement Rolling (175) Ox5 Location -10/Mines Parts ------- > --- POWER (1) -------- (None) > --- PROPULSION (2) --- Compact Wheel > --- UTILITY (2) ------ Huge Storage Unit > --- WEAPON (2) ------- Heavy Assault Rifle Heavy Assault Rifle > --- INVENTORY (25) --- Light Ion Engine Aluminum Leg Aluminum Leg Wheel Compact Wheel VTOL Module VTOL Module VTOL Module VTOL Module Heat Sink Medium Storage Unit Large Storage Unit High-capacity Matter Pod (200) Structural Scanner Sensor Array Signal Interpreter Seismic Detector Propulsion Shielding Assault Rifle Assault Rifle Heavy Assault Rifle Shotgun Grenade Launcher Maul Peak State ------------ > --- POWER ------------ Light Nuclear Core > --- PROPULSION ------- Aluminum Leg Compact Wheel > --- UTILITY ---------- Huge Storage Unit Seismic Detector > --- WEAPON ----------- Heavy Assault Rifle Heavy Assault Rifle > --- INVENTORY -------- Light Ion Engine Light Ion Engine Aluminum Leg Aluminum Leg Aluminum Leg Wheel Wheel VTOL Module VTOL Module VTOL Module VTOL Module Heat Sink Medium Storage Unit Large Storage Unit Small Matter Pod Structural Scanner Sensor Array Sensor Array Signal Interpreter Light Armor Plating Heavy Assault Rifle Heavy Assault Rifle Shotgun Shotgun Maul [Rating: 14] Favorites ----------- Power Light Ion Engine Engine Light Ion Engine Power Core Light Nuclear Core Propulsion Light Treads Treads Light Treads Leg Aluminum Leg Wheel Compact Wheel Utility Seismic Detector Device Seismic Detector Storage Huge Storage Unit Protection Light Armor Plating Weapon Heavy Assault Rifle Energy Gun Small Laser Ballistic Gun Heavy Assault Rifle Launcher Grenade Launcher Build | -11 -10 -10 ------- Run | Yrd Mat Min Slots Evolved . | . . . Power . | . . . Propulsion . | . . . Utility . | . . . Weapon . | . . . Parts Attached 27 | 7 15 5 Power 6 | 1 4 1 Engine 4 | 1 3 . Core 2 | . 1 1 Reactor . | . . . Propulsion 6 | 2 3 1 Treads 2 | 2 . . Leg 2 | . 1 1 Wheel 2 | . 2 . Hover . | . . . Flight . | . . . Utility 6 | 2 3 1 Device 2 | 1 1 . Storage 2 | 1 1 . Processor . | . . . Hackware . | . . . Protection 2 | . 1 1 Artifact . | . . . Weapon 9 | 2 5 2 Energy Gun 2 | 2 . . Energy Cannon . | . . . Ballistic Gun 6 | . 4 2 Ballistic Cannon . | . . . Launcher 1 | . 1 . Special Weapon . | . . . Impact Weapon . | . . . Slashing Weapon . | . . . Piercing Weapon . | . . . Special Melee Weapon . | . . . Unidentified Prototypes . | . . . Parts Lost 8 | . 3 5 Power 3 | . 1 2 Propulsion 3 | . 2 1 Utility 2 | . . 2 Weapon . | . . . Highest Loss Streak 4 | . 2 4 To Critical Strikes . | . . . Average Slot Usage (%) 99 | . 99 97 Engine 9 | . 11 . Core 3 | . 2 12 Treads 17 | . 19 . Leg 3 | . 2 13 Wheel 6 | . 5 14 Device 12 | . 14 . Storage 14 | . 14 14 Protection 1 | . . 13 Energy Gun 4 | . 4 . Ballistic Gun 23 | . 23 28 Naked Turns . | . . . Heaviest Build 94 | 13 94 94 Greatest Support 40 | 40 40 16 Greatest Overweight (x) 5 | . 5 5 Average Overweight (x) 2 | . 2 5 Largest Inventory Capacity 25 | 8 25 25 Average Capacity 18 | 7 18 25 Most Carried 25 | 5 25 25 Average Carried 14 | 2 14 24 Final Capacity 25 | 8 25 25 Final Carried 25 | 5 25 24 Class Distribution -------------------- 95% | Mutant 4% | Scavenger-Mutant Dominant Class ---------------- Mutant | -10/Materials Mutant | -10/Mines Resources | -11 -10 -10 ----------- Run | Yrd Mat Min Matter Collected 1117 | 270 679 168 Remotely . | . . . Salvage Created 1374 | 118 1088 168 Parts 81 | 8 68 5 Haulers Intercepted 2 | . 2 . Recyclers Shooed 4 | . 2 2 Parts Field Recycled . | . . . Retrieved Matter . | . . . Parts Self-Destructed . | . . . Prevented . | . . . Kills | -11 -10 -10 ------- Run | Yrd Mat Min Combat Hostiles Destroyed 21 | . 19 2 Guns 21 | . 19 2 Classes Destroyed 9 | 2 7 . Worker 2 | . 2 . Builder 2 | . 2 . Tunneler 6 | 2 4 . Hauler 2 | . 2 . Recycler 3 | 1 1 1 Operator 1 | . 1 . Watcher 3 | . 3 . Swarmer 3 | . 3 . Grunt 18 | . 16 2 Best Kill Streak 5 | 2 5 1 Combat Bots Only 5 | . 5 1 Max Kills in Single Turn 2 | 1 2 1 Gunslinging 1 | . 1 . Exploded . | . . . Melee . | . . . Uniques/NPCs Destroyed . | . . . Combat | -11 -10 -10 -------- Run | Yrd Mat Min Hostile Shots Fired 116 | . 85 31 Missed 25 | . 18 7 Damage Taken 1406 | . 754 652 Core 260 | . 87 173 Absorbed by Shields . | . . . Core Remaining (%) 100 | 100 . . Volleys Fired 125 | 11 94 20 Largest 2 | 2 2 2 Hottest 80 | 80 80 46 Shots Fired 250 | 22 188 40 Gun 250 | 22 188 40 Cannon . | . . . Launcher . | . . . Special . | . . . Kinetic 167 | . 127 40 Thermal 83 | 22 61 . Explosive . | . . . Electromagnetic . | . . . Robot Hit Streak 10 | 9 10 8 Robot Miss Streak 4 | 3 4 4 Penetration Max . | . . . Secondary Targets 2 | . 1 1 Max Gunslinging Chain 1 | . 1 1 Shots Hit Robots 161 | 13 116 32 Core Hits 63 | 4 50 9 Critical Kills 2 | . 2 . Critical Parts Destroyed 2 | . 2 . Critical Strikes 4 | . 4 . Destroy 4 | . 4 . Melee Attacks . | . . . Impact . | . . . Slashing . | . . . Piercing . | . . . Sneak Attacks . | . . . Combat Hostiles . | . . . Follow-up Attacks . | . . . Damage Inflicted 2260 | 145 1634 481 Guns 2254 | 145 1628 481 Cannons . | . . . Explosions . | . . . Melee . | . . . Ramming 6 | . 6 . Kinetic 1650 | . 1169 481 Thermal 604 | 145 459 . Explosive . | . . . Electromagnetic . | . . . Impact . | . . . Slashing . | . . . Piercing . | . . . Highest Corruption . | . . . Average Corruption . | . . . Corruption Purged . | . . . Corruption Blocked . | . . . Overload Shots . | . . . Overflow Damage . | . . . Projectiles . | . . . Explosions . | . . . Melee . | . . . Knockbacks . | . . . Impact . | . . . Kinetic . | . . . Secondary . | . . . Self-Inflicted Damage 1 | . 1 . Shots . | . . . Rammed 3 | . 3 . Targets Rammed 3 | . 3 . Kicked . | . . . Crushed . | . . . Highest Temperature 333 | 72 333 92 Average Temperature 70 | 35 87 42 Received Heat Transfer 492 | . 393 99 Effects 2 | . 2 . Energy Bleed 2 | . 2 . Siege Activations . | . . . Robots Corrupted . | . . . Combat Hostiles . | . . . Parts Fried . | . . . Impact Corruptions . | . . . Robots Melted . | . . . Combat Hostiles . | . . . Parts Melted 6 | 1 5 . Heat Transferred 1375 | 325 1050 . Parts Sabotaged . | . . . Parts Stolen . | . . . Parts Stripped . | . . . Power Chain Reactions . | . . . Alert | -11 -10 -10 ------- Run | Yrd Mat Min Peak Influence 188 | 15 188 68 Initial 23 | . 9 23 Average 71 | 8 76 61 Maximum Alert Level . | . . . Low Security (%) 100 | 100 100 100 Level 1 . | . . . Level 2 . | . . . Level 3 . | . . . Level 4 . | . . . Level 5 . | . . . High Security . | . . . Max Security . | . . . Squads Dispatched 6 | . 6 . Investigation 3 | . 3 . Extermination . | . . . Reinforcement 3 | . 3 . Assault . | . . . Garrison . | . . . Intercept . | . . . Searches Triggered . | . . . Construction Impeded . | . . . Haulers Reinforced . | . . . Active Scanning Responses . | . . . Cargo Convoy Interrupts . | . . . Stealth | -11 -10 -10 --------- Run | Yrd Mat Min Distress Signals 1 | . 1 . Communications Jammed . | . . . Distress Signals . | . . . Times Spotted 37 | . 30 7 Peak Tracking Total 6 | . 6 2 Tactical Retreats 1 | . 1 . Traps | -11 -10 -10 ------- Run | Yrd Mat Min Traps Triggered 1 | . 1 . Indirectly . | . . . Trap Hack Attempts . | . . . Triggered . | . . . Disarmed . | . . . Reprogrammed . | . . . Reused . | . . . Traps Extracted . | . . . Installed . | . . . Triggered . | . . . Machines | -11 -10 -10 ---------- Run | Yrd Mat Min Machines Disabled 2 | . 2 . Max in Single Turn 1 | . 1 . Machines Repaired . | . . . Machines Dismantled . | . . . Machines Sabotaged . | . . . Overloaded Fab Kills . | . . . Hacking | -11 -10 -10 --------- Run | Yrd Mat Min Machines Accessed 7 | . 7 . Terminals 5 | . 5 . Fabricators . | . . . Repair Stations . | . . . Recycling Units 2 | . 2 . Scanalyzers . | . . . Garrison Access . | . . . Total Hacks 24 | . 24 . Successful 8 | . 8 . Failed 16 | . 16 . Catastrophic 3 | . 3 . Database Lockouts . | . . . Manual 17 | . 17 . Terminals 19 | . 19 . Fabricators . | . . . Repair Stations . | . . . Recycling Units 5 | . 5 . Scanalyzers . | . . . Garrison Access . | . . . Terminal Hacks 4 | . 4 . Part Schematic 1 | . 1 . Robot Analysis 1 | . 1 . Alert Level 1 | . 1 . Unreport Threat 1 | . 1 . Fabricator Hacks . | . . . Repair Station Hacks . | . . . Recycling Unit Hacks 1 | . 1 . Retrieve Components 1 | . 1 . Scanalyzer . | . . . Garrison Access Hacks . | . . . Unauthorized Hacks 3 | . 3 . Terminals 2 | . 2 . Botnet 2 | . 2 . Fabricators . | . . . Repair Stations . | . . . Recycling Units 1 | . 1 . Tunnel 1 | . 1 . Scanalyzers . | . . . Garrison Access . | . . . Data Cores Recovered . | . . . Used . | . . . Hacking Detections 6 | . 6 . Full Trace Events 1 | . 1 . Feedback Events . | . . . Feedback Blocked . | . . . Robot Schematics Acquired . | . . . Robots Built . | . . . Authchips . | . . . Time . | . . . Total Robot Build Rating . | . . . Part Schematics Acquired 1 | . 1 . Parts Built . | . . . Authchips . | . . . Time . | . . . Total Part Build Rating . | . . . Parts Repaired . | . . . Time . | . . . Parts Recycled . | . . . Recycled Matter . | . . . Retrieved Matter . | . . . Retrieved Components 10 | . 10 . Parts Scanalyzed . | . . . Part Schematics Acquired . | . . . Parts Damaged . | . . . Bothacking | -11 -10 -10 ------------ Run | Yrd Mat Min Used RIF Installer . | . . . Robots Hacked . | . . . Non-combat . | . . . Combat . | . . . Robot Hacks Applied . | . . . Relay Couplers Released . | . . . Fabnet Peak Effective % . | . . . Robots Rewired . | . . . Allies Hacked . | . . . Hacks Repelled . | . . . Allies | -11 -10 -10 -------- Run | Yrd Mat Min Total Allies . | . . . Largest Group . | . . . Highest-Rated Group . | . . . Highest-Rated Ally . | . . . Total Orders . | . . . Ally Attacks . | . . . Total Damage . | . . . Kills . | . . . Allies Corrupted . | . . . Allies Melted . | . . . Intel | -11 -10 -10 ------- Run | Yrd Mat Min Robot Analysis Total 1 | . 1 . Derelict Logs Recovered . | . . . Drone Launches . | . . . Drone Recoveries . | . . . Exploration | -11 -10 -10 ------------- Run | Yrd Mat Min Turns Passed 2730 | 157 2311 262 Spaces Moved 1181 | 69 1001 111 Core 1 | 1 . . Treads 623 | 68 555 . Legs . | . . . Wheels 557 | . 446 111 Hover . | . . . Flight . | . . . Fastest Speed 50 | 50 160 175 Average Speed 185 | 158 188 175 Slowest Speed 480 | 160 480 175 Overloaded Moves . | . . . Propulsion Burnouts . | . . . Robots Hopped . | . . . Cave-ins Triggered . | . . . Exploration Rate (%) 40 | 4 97 21 Regions Visited 2 Branch Regions 1 Pre-discovered Areas 1 | . 1 . Known Exits Taken . | . . . Unknown Exits Taken 2 | 1 1 . Scrap Searched . | . . . Spaces Dug . | . . . Terrain Destroyed . | . . . Melee . | . . . Projectile . | . . . AOE . | . . . Terrain Rammed . | . . . Walls Destroyed . | . . . Machines Disabled . | . . . Actions | -11 -10 -10 --------- Run | Yrd Mat Min Total 1481 | 91 1252 138 Wait 75 | . 74 1 Move 1179 | 68 1000 111 Hop . | . . . Pick Up 45 | 5 40 . Fast Attach 10 | 7 2 1 Attach 4 | . 3 1 Detach . | . . . Swap 13 | . 10 3 Drop 27 | . 26 1 Fire 125 | 11 94 20 Melee . | . . . Ram 1 | . 1 . Kick . | . . . Crush 2 | . 2 . Escape Stasis . | . . . Rewire . | . . . Trap . | . . . Miscellaneous . | . . . Route ------- -11/Scrapyard -10/Materials (discovered 5 exits: [*Mat x3] / [*Min x2]) -10/Mines (discovered 1 exit: [*Mat]) History --------- Turn | Location | Event 8 | -11/Scrapyard | Discovered new exit (range 15) 158 | -11/Scrapyard | Entered Materials 311 | -10/Materials | Build established: Mutant 577 | -10/Materials | Discovered new exit (range 16) 861 | -10/Materials | Discovered new exit (range 15) 1402 | -10/Materials | Discovered new exit (range 15) 2112 | -10/Materials | Discovered new exit (range 8) 2257 | -10/Materials | Discovered new exit (range 12) 2469 | -10/Materials | Entered Mines 2610 | -10/Mines | Discovered new exit (range 11) 2707 | -10/Mines | Assembled infested the area 2722 | -10/Mines | Core integrity fell below 50% 2730 | -10/Mines | Core integrity fell below 20% 2731 | -10/Mines | Destroyed by D-53 Grenadier with Mini Grenade Launcher Last Messages --------------- Unit. 02657_ K-01 Serf collects debris. 02673_ T-07 Excavator is excavating. 02707_ ALERT: Infestation in the mines, dispatching Demolisher response squad. 02719_ C-30 ARC bursts open, deploying its payload. 02719_ D-53 Grenadier unfolds itself. 02721_ T-07 Excavator destroyed. 02723_ Aluminum Leg destroyed. 02725_ Lgt. Armor Plating destroyed. 02726_ U-05 Engineer lays Concrete. 02727_ Lgt. Nuclear Core destroyed. 02727_ U-05 Engineer lays Concrete. 02728_ The unstable cave ceiling collapses. 02728_ U-05 Engineer lays Concrete. 02729_ K-01 Serf collects debris. 02729_ Lgt. Armor Plating destroyed. 02729_ U-05 Engineer lays Concrete. 02731_ K-01 Serf destroyed. Map ----- +----------------------------------------------------+ | ?????????????????????????????????????????????? | | ?????????????????????????????????????????????? | | ?????????????????????????????????????????????? | | ?????????????????????????????????????????????? | | ?????????????????????????????????????????????? | | ?????????????????????????????????????????????? | | ??????????????????????###########????????????? | | ??????????????????????# #????????????? | | ??????????????????????# """ #????????????? | | ??????????????????????# """ #????????????? | | ??????????????????????# """ #????????????? | | ??????????????????????# #????????????? | | ??????????????????????# """ """ #????#####???? | | ??????????????????????# """ """ #???## ##??? | | ??????????????????????# """k""" #???# ##?? | | ??????????????????????# #???# < #?? | | ??????????????????????# """ """ #???# #?? | | ??????????????????????# """ """ #???# #??? | | ??????????????????????# """ """ #???# ##??? | | ??????????????????????# #???## #???? | | ??????????????????????# #????## #???? | | ?????????????????????## =% #?????# #???? | | ????????##??????????## * ###?????# #???? | | ????????? ???????## #???????# #???? | | ??????????? ??#### #???????# #???? | | ?????????#^ ## # @ ######### #???? | | ???????????# ^ a aa d % #???? | | ?????????# #^ ru d #???? | | ??????????????# #############???? | | ??????? #?????#?????????? | | ?????? ^ ## ###### ##????????? | | ??????? #?## #????????? | | ??????? #???# #????????? | | ???????? #????## ####### ##????????? | | ???????? ??????####?????????????????? | | ???????? ## ????????????????????????????? | | ????????? ??##?????????????????????????????? | | ????????? ??????????????????????????????????? | | ?????????????????????????????????????????????? | | ?????????????????????????????????????????????? | | ?????????????????????????????????????????????? | | ?????????????????????????????????????????????? | | ?????????????????????????????????????????????? | | ?????????????????????????????????????????????? | | | | | | | | | | | | | +----------------------------------------------------+ Best States ------------- Heat Dissipation 25 Energy Generation 14 Energy Capacity 250 Matter Stores 300 Matter Capacity 300 Sight Range 16 Terrain Scan Density 10 Armor Coverage 150 Evasion (%) 40 Recoil Reduction 2 Item Schematics ----------------- Hcp. Storage Unit | -10/Materials | Hacked Robot Schematics ------------------ None Fabricated ------------ Nothing Alien Tech Used ----------------- None Achievements -------------- None Challenges ------------ None Game ------ Seed FrostPhysicsAnalyzer Manual? 0 Play Time 00:19:25 Cumulative 101.2 hours Start 2024.04.05 @ 22:08:33 End 2024.04.05 @ 22:27:37 Sessions 1 Manual Loads 0 Difficulty Rogue Special Mode None Game No. 57 Rogue 57 Adventurer 0 Explorer 0 Win Type - Total 4 Types 3/0/0/1/0/0/0/0/0 Lore% 56 Gallery% 72 Achievement% 49 Wizard Run 0 Options --------- Layout 2 ASCII 0 Keyboard 1 Movement Numpad Keybinds 0 Fullscreen 2 Font 32/Tamsyn Map View 50x44 Zoom Use 0% Tactical HUD 1 Map Filters NONE Filters NONE Steam 1 RUN: af6b3b12-8105-4c02-9f8e-5f17eaffe161